fUSD/lending_fUSD_20250906
["ID","MTS","AMOUNT","RATE_DAILY","PERIOD"]
[383933779,1757179877084,-483.78,0.0003589,8]
[383933780,1757179877094,-400.0,0.0003589,8]
[383933781,1757179877104,-566.06,0.0003589,8]
[383933782,1757179877114,-400.0,0.0003589,8]
[383933783,1757179877124,-400.0,0.0003589,8]
[383933784,1757179877134,-400.0,0.0003589,8]
[383933785,1757179877143,-400.0,0.0003589,8]
[383933786,1757179877153,-400.0,0.0003589,8]
[383933787,1757179877163,-1792.92,0.0003589,8]
[383933788,1757179877172,-400.0,0.0003589,8]
[383933789,1757179877183,-400.0,0.0003589,8]
[383933790,1757179877192,-400.0,0.0003589,8]
[383933791,1757179877202,-400.0,0.0003589,8]
[383933792,1757179877212,-400.0,0.0003589,8]
[383933793,1757179877222,-400.0,0.0003589,8]
[383933794,1757179877231,-1053.65,0.0003589,8]
[383933795,1757179877241,-400.0,0.0003589,8]
[383933796,1757179877251,-400.0,0.0003589,8]
[383933797,1757179877261,-400.0,0.0003589,8]
[383933798,1757179877271,-400.0,0.0003589,8]
[383933799,1757179877281,-400.0,0.0003589,8]
[383933800,1757179877291,-763.24,0.0003589,8]
[383933801,1757179877301,-1000.0,0.0003589,8]
[383933802,1757179877311,-400.0,0.0003589,8]
[383933803,1757179877321,-484.81,0.0003589,8]
[383933804,1757179877330,-670.02,0.0003589,8]
[383933805,1757179877340,-604.16,0.0003589,8]
[383933806,1757179877350,-284.13651388,0.0003589,8]
[383933807,1757179878321,-293.133,0.00035616,8]
[383933808,1757179879204,-987.94598868,0.00019873,2]
[383933809,1757179879233,-121.2282922,0.00019873,2]
[383933810,1757179879243,-139.5038198,0.00029846,2]
[383933826,1757180411043,158.2,0.00014483,2]
[383933827,1757180411248,158.2,0.00015449,2]
[383933828,1757180411472,158.2,0.00016414,2]
[383933829,1757180412548,158.2,0.0001738,2]
[383933830,1757180412736,-158.2,0.00018346,2]
[383933831,1757180550364,-158.2,0.00019311,2]
[383933832,1757180561319,346.63314863,0.00020175,2]
[383933834,1757180859828,-158.2,0.00020277,2]
[383933835,1757180859853,-250.0,0.00020653,2]
[383933836,1757180933106,607.565045,0.0002091,2]
[383933837,1757180935596,771.26195722,0.00021,2]
[383933840,1757181031601,-1336.6671332,0.00021001,2]
[383933841,1757181031611,-1200.0,0.00021014,2]
[383933842,1757181031620,-8492.3328668,0.00021015,2]
[383933843,1757181031809,-410.12,0.00021015,2]
[383933844,1757181031860,-412.64213996,0.00021015,2]
[383933845,1757181031916,-2746.95527464,0.00021015,2]
[383933846,1757181031927,-224.44546057,0.00021242,2]
[383933847,1757181031937,-158.2,0.00021242,2]
[383933848,1757181031949,-1109.17428088,0.00022186,2]
[383933849,1757181031958,-158.2,0.00022208,2]
[383933850,1757181031967,-300.0,0.00022304,2]
[383933851,1757181031988,-300.0,0.00022304,2]
[383933852,1757181032002,-300.0,0.00022304,2]
[383933853,1757181032014,-167.5,0.00022579,2]
[383933854,1757181032023,-28899.28304284,0.0002266,2]
[383933856,1757181032034,-1680.0,0.00022967,2]
[383933858,1757181032044,-151.0,0.00023119,2]
[383933860,1757181032054,-151.0,0.00023119,2]
[383933862,1757181032063,-500.0,0.00023119,2]
[383933864,1757181032074,-151.0,0.00023119,2]
[383933866,1757181032084,-151.0,0.00023119,2]
[383933869,1757181032094,-151.0,0.00023119,2]
[383933870,1757181032104,-151.0,0.00023119,2]
[383933872,1757181032114,-151.0,0.00023119,2]
[383933874,1757181032123,-151.0,0.00023119,2]
[383933876,1757181032132,-600.0,0.00023119,2]
[383933878,1757181032141,-151.0,0.00023119,2]
[383933880,1757181032151,-164.46263512,0.00023119,2]
[383933882,1757181032160,-151.0,0.00023119,2]
[383933884,1757181032169,-151.0,0.00023119,2]
[383933886,1757181032179,-151.0,0.00023119,2]
[383933888,1757181032188,-500.0,0.00023119,2]
[383933890,1757181032198,-500.0,0.00023119,2]
[383933892,1757181032207,-500.0,0.00023119,2]
[383933894,1757181032216,-233.85986707,0.00023119,2]
[383933896,1757181032226,-158.2,0.00023173,2]
[383933898,1757181032235,-577.59823997,0.00023174,2]
[383933900,1757181032245,-158.2,0.00024139,2]
[383933902,1757181032254,-1109.17428088,0.00024499,2]
[383933904,1757181032264,-222.29006756,0.000246,2]
[383933906,1757181032274,-203.87,0.00024658,2]
[383933907,1757181032284,-2405.38989219,0.000249,2]
[383933908,1757181032293,-2351.0,0.00025101,2]
[383933909,1757181032304,-158.2,0.00025104,2]
[383933910,1757181032315,-479.0,0.00025507,2]
[383933911,1757181032324,-7560.17898464,0.00025552,2]
[383933912,1757181032334,-1104.43,0.00025782,2]
[383933913,1757181032343,-694.33196428,0.00026,2]
[383933914,1757181032357,-379.59803572,0.00026,2]
[383933915,1757181032367,-158.2,0.0002607,2]
[383933916,1757181032377,-615.58358423,0.00026397,2]
[383933917,1757181032386,-8214.19172027,0.00026531,2]
[383933921,1757181037591,-2519.61499444,0.00026531,2]
[383933922,1757181037698,-3719.57328529,0.00026531,2]
[383933923,1757181037708,-1000.0,0.0002654,2]
[383933924,1757181037717,-3748.33,0.0002654,2]
[383933925,1757181037726,-2751.0,0.00026795,2]
[383933926,1757181037738,-1109.17428088,0.00026812,2]
[383933927,1757181037748,-155.87,0.00026825,2]
[383933928,1757181037758,-2607.95,0.00026889,2]
[383933929,1757181037768,-2018.94,0.00026899,2]
[383933930,1757181037778,-21358.86674364,0.00026937,2]
[383933931,1757181037789,-200.0,0.00026945,2]
[383933932,1757181037799,-5000.0,0.00026945,2]
[383933933,1757181037808,-158.2,0.00027036,2]
[383933934,1757181037819,-17739.6,0.0002709,2]
[383933935,1757181037830,-20198.57,0.0002714,2]
[383933936,1757181037841,-5788.94802607,0.00027336,2]
[383933937,1757181037855,-636.41,0.00027425,30]
[383933938,1757181037865,-3292.0,0.00027433,2]
[383933939,1757181037875,-160.0,0.00027606,7]
[383933940,1757181037884,-203.87,0.00027716,2]
[383933941,1757181037894,-250.0,0.00027749,2]
[383933942,1757181037905,-2405.38989207,0.00027827,8]
[383933943,1757181037915,-158.2,0.00028001,2]
[383933944,1757181037926,-150.0,0.00028128,2]
[383933945,1757181037935,-150.0,0.00028219,2]
[383933946,1757181037945,-1247.88,0.00028219,2]
[383933947,1757181037956,-514.85095374,0.00028313,2]
[383933948,1757181037966,-160.0,0.00028313,2]
[383933949,1757181037976,-160.0,0.00028313,2]
[383933950,1757181037986,-212.67823062,0.00028313,2]
[383933951,1757181037996,-700.0,0.00028375,2]
[383933952,1757181038006,-322.6107,0.00028743,2]
[383933953,1757181038016,-151.0,0.00028743,2]
[383933954,1757181038026,-151.0,0.00028743,2]
[383933955,1757181038035,-267.46074303,0.00028743,2]
[383933957,1757181038044,-158.2,0.00028967,2]
[383933959,1757181038054,-160.52,0.00028999,2]
[383933960,1757181038063,-1572.95,0.00029009,2]
[383933961,1757181038073,-303.58,0.00029009,2]
[383933962,1757181038083,-1155.31,0.00029009,2]
[383933963,1757181038092,-9254.45,0.00029009,2]
[383933964,1757181038102,-499.99,0.00029009,2]
[383933965,1757181038111,-9999.99,0.00029009,2]
[383933966,1757181038121,-9999.99,0.00029009,2]
[383933967,1757181038130,-150.99,0.00029009,2]
[383933968,1757181038139,-999.99,0.00029009,2]
[383933969,1757181038147,-9999.99,0.00029009,2]
[383933970,1757181038156,-738.63700139,0.00029025,18]
[383933971,1757181038164,-500.0,0.000291,5]
[383933972,1757181038173,-1109.17428088,0.00029125,2]
[383933973,1757181038182,-151.0,0.00029291,2]
[383933974,1757181038192,-151.0,0.00029291,2]
[383933975,1757181038202,-5000.0,0.00029438,2]
[383933976,1757181038212,-155.87,0.00029507,2]
[383933977,1757181038221,-1000.0,0.00029648,5]
[383933978,1757181038232,-231.7389,0.00029715,2]
[383933979,1757181038242,-212.67823062,0.000299,3]
[383933980,1757181038253,-2659.0,0.00029983,2]
[383933981,1757181038262,-167.0,0.0003,14]
[383933982,1757181038271,-250.0,0.00030048,2]
[383933983,1757181038281,-334.5472959,0.00030112,2]
[383933984,1757181038291,-277.35679052,0.00030112,2]
[383933985,1757181038300,-150.0,0.00030684,120]
[383933986,1757181038310,-150.0,0.00030713,2]
[383933987,1757181038319,-1000.0,0.00030724,30]
[383933988,1757181038329,-2405.38989207,0.00030754,14]
[383933989,1757181038339,-203.87,0.00030775,2]
[383933990,1757181038348,-6778.52,0.00030817,2]
[383933991,1757181038357,-738.63700139,0.00030837,23]
[383933992,1757181038367,-227.79,0.00030847,120]
[383933993,1757181038376,-200.0,0.0003087,2]
[383933994,1757181038386,-666.0,0.00030946,3]
[383933995,1757181038396,-1000.0,0.00031032,2]
[383933996,1757181038406,-2500.0,0.00031032,2]
[383933997,1757181038416,-160.18,0.00031112,2]
[383933998,1757181038425,-2096.36,0.00031223,2]
[383933999,1757181038435,-1119.3387199,0.00031312,29]
[383934000,1757181038472,-555.0462801,0.00031312,29]
[383934001,1757181038481,-2616.16,0.00031426,2]
[383934002,1757181038490,-3255.12,0.00031426,2]
[383934003,1757181038499,-16178.23,0.00031426,2]
[383934004,1757181038509,-1109.17428088,0.00031438,2]
[383934005,1757181038518,-4127.52,0.00031464,2]
[383934006,1757181038528,-346.92554585,0.00031481,2]
[383934007,1757181038538,-287.61899177,0.00031481,2]
[383934008,1757181038549,-813.66,0.00031508,2]
[383934009,1757181038560,-160.52,0.00031632,2]
[383934010,1757181038570,-8487.55,0.00031642,2]
[383934011,1757181038580,-168.0,0.00032029,2]
[383934012,1757181038590,-192.0,0.00032031,2]
[383934013,1757181038600,-166.66,0.00032062,2]
[383934014,1757181038613,-2176.09992308,0.00032078,2]
[383934015,1757181038624,-192.0,0.00032083,2]
[383934016,1757181038636,-203.962685,0.00032085,7]
[383934017,1757181038645,-2176.09992308,0.00032098,2]
[383934018,1757181038655,-192.0,0.00032101,2]
[383934019,1757181038664,-2507.0,0.00032108,7]
[383934020,1757181038678,-1392.0496882,0.00032132,2]
[383934021,1757181038688,-155.87,0.0003219,2]
[383934022,1757181038697,-236.0,0.00032192,2]
[383934023,1757181038707,-168.0,0.00032206,2]
[383934024,1757181038718,-10880.4996154,0.00032222,2]
[383934025,1757181038728,-192.0,0.00032238,7]
[383934026,1757181038738,-168.0,0.00032256,2]
[383934027,1757181038747,-4709.0,0.00032267,2]
[383934028,1757181038758,-2176.09992308,0.00032469,2]
[383934029,1757181038769,-3811.0,0.00032479,2]
[383934030,1757181038779,-1392.04968819,0.00032599,2]
[383934031,1757181038790,-8704.39969232,0.00032644,2]
[383934032,1757181038800,-738.63700139,0.00032649,28]
[383934033,1757181038809,-236.0,0.00032652,7]
[383934034,1757181038820,-813.66,0.00032689,2]
[383934035,1757181038833,-150.0,0.00032736,2]
[383934036,1757181038842,-4709.0,0.00032749,7]
[383934037,1757181038850,-359.76179104,0.0003285,2]
[383934038,1757181038858,-298.26089446,0.0003285,2]
[383934039,1757181038867,-2000.0,0.000329,2]
[383934040,1757181038876,-2176.09992308,0.0003299,2]
[383934041,1757181038886,-212.67823062,0.00033,7]
[383934042,1757181038897,-3364.0,0.00033056,5]
[383934043,1757181038907,-160.18,0.00033056,2]
[383934044,1757181038918,-758.75462239,0.00033057,2]
[383934045,1757181038929,-1392.04968819,0.00033067,2]
[383934046,1757181038939,-192.0,0.00033104,2]
[383934047,1757181038948,-166.66,0.00033121,2]
[383934048,1757181038958,-236.0,0.00033148,2]
[383934049,1757181038968,-10880.4996154,0.00033209,2]
[383934050,1757181038977,-1425.0,0.00033377,2]
[383934051,1757181038987,-192.0,0.00033492,2]
[383934052,1757181038997,-1392.04968819,0.00033534,2]
[383934053,1757181039007,-636.41,0.00033649,30]
[383934054,1757181039016,-2405.38989207,0.00033682,21]
[383934055,1757181039026,-264.75,0.00033698,7]
[383934056,1757181039036,-2176.09992308,0.00033741,2]
[383934057,1757181039047,-1109.17428088,0.00033751,2]
[383934058,1757181039057,-4352.19984616,0.00033765,2]
[383934059,1757181039067,-8704.39969232,0.00033775,2]
[383934060,1757181039076,-160.52,0.00033787,2]
[383934061,1757181039086,-14.11845781,0.0003379,2]
[383934063,1757181039694,-235.56641315,0.00027826,2]
[383934064,1757181039704,-185.32256436,0.00027826,2]
[383934065,1757181039713,-500.0,0.00027826,2]
[383934066,1757181039723,-236.3185653,0.00027826,2]
[383934067,1757181039732,-522.14031729,0.00027826,2]
[383934068,1757181039985,-1410.88154219,0.0003379,2]
[383934069,1757181039999,-3011.38049103,0.00033797,2]
[383934070,1757181040009,-2176.09992308,0.00033832,2]
[383934071,1757181040019,-203.87,0.00033834,2]
[383934072,1757181040029,-813.66,0.00033871,2]
[383934073,1757181040039,-799.23,0.0003389,30]
[383934074,1757181040049,-210.75,0.0003389,30]
[383934075,1757181040058,-1392.04968819,0.00034001,2]
[383934076,1757181040067,-192.0,0.00034055,7]
[383934077,1757181040078,-150.0,0.00034106,2]
[383934078,1757181040087,-168.0,0.00034172,2]
[383934079,1757181040097,-124.50433904,0.00034179,2]
[383934081,1757181040787,-42.15566096,0.00034179,2]
[383934082,1757181040797,-192.0,0.00034193,2]
[383934083,1757181040809,-373.07297731,0.00034219,2]
[383934084,1757181040818,-309.29654756,0.00034219,2]
[383934085,1757181040828,-1425.0,0.00034246,2]
[383934086,1757181040838,-6528.29976924,0.0003433,2]
[383934087,1757181040848,-8704.39969232,0.0003434,2]
[383934088,1757181040858,-192.0,0.00034341,2]
[383934089,1757181040868,-1425.0,0.00034355,2]
[383934090,1757181040877,-200.0,0.0003438,10]
[383934091,1757181040887,-264.75,0.00034383,9]
[383934092,1757181040896,-799.23,0.00034427,30]
[383934093,1757181040906,-210.75,0.00034427,30]
[383934094,1757181040915,-738.63700139,0.00034462,34]
[383934095,1757181040926,-1392.04968819,0.00034469,2]
[383934096,1757181040935,-2176.09992308,0.00034532,2]
[383934097,1757181040945,-1425.0,0.00034542,2]
[383934098,1757181040956,-3216.0594801,0.00034563,2]
[383934099,1757181040966,-7716.8491536,0.00034563,2]
[383934100,1757181040976,-227.79,0.00034703,120]
[383934101,1757181040986,-744.5818222,0.00034813,2]
[383934102,1757181040996,-200.0,0.000349,12]
[383934103,1757181041005,-1392.04968819,0.00034936,2]
[383934104,1757181041017,-799.23,0.00034964,30]
[383934105,1757181041027,-210.75,0.00034964,30]
[383934106,1757181041036,-168.0,0.00034964,2]
[383934107,1757181041046,-1425.0,0.00034979,2]
[383934108,1757181041056,-3811.0,0.00034982,7]
[383934109,1757181041067,-168.0,0.00034982,2]
[383934110,1757181041076,-160.18,0.00035001,2]
[383934111,1757181041087,-5000.0,0.00035014,2]
[383934112,1757181041097,-813.66,0.00035052,2]
[383934113,1757181041106,-264.75,0.00035068,11]
[383934114,1757181041116,-168.0,0.0003509,2]
[383934115,1757181041125,-203.962685,0.00035091,14]
[383934116,1757181041135,-30914.659079,0.00035094,2]
[383934117,1757181041146,-41673.04284047,0.00035104,2]
[383934118,1757181041214,-490.82495912,0.00035104,2]
[383934119,1757181041245,-2147.98467613,0.00035104,2]
[383934120,1757181041256,-269.65640015,0.00035104,2]
[383934147,1757181045688,-390.43581403,0.00035104,2]
[383934148,1757181045700,-6287.11802964,0.00035104,2]
[383934149,1757181045791,-1064.8319108,0.00035104,2]
[383934150,1757181045846,-5990.63528658,0.00035104,2]
[383934151,1757181045899,-270.89131941,0.00035104,2]
[383934152,1757181046005,-320.43482323,0.00035104,2]
[383934154,1757181190443,500.0,0.00013699,2]
[383934177,1757181581396,250.0,0.00015,2]
[383934178,1757181582694,300.0,0.00017,2]
[383934179,1757181584033,350.0,0.00019,2]
[383934180,1757181584126,158.25,0.00016412,2]
[383934181,1757181584219,158.25,0.00019695,2]
[383934199,1757182231853,-164.0246,0.00021142,2]
[383934200,1757182231863,-158.25,0.00022977,2]
[383934201,1757182231872,-173.8409343,0.000249,2]
[383934207,1757182237830,-1923.05360604,0.000249,2]
[383934208,1757182237841,-158.25,0.0002626,2]
[383934209,1757182237851,-2096.89454016,0.00027827,8]
[383934210,1757182237860,-250.0,0.00027936,2]
[383934211,1757182237871,-158.25,0.00029542,2]
[383934212,1757182237880,-150.99,0.00029542,2]
[383934213,1757182237890,-5459.7,0.00029542,2]
[383934214,1757182237899,-301.2,0.00029542,2]
[383934215,1757182237908,-9999.99,0.00029542,2]
[383934216,1757182237917,-9999.99,0.00029542,2]
[383934217,1757182237925,-150.99,0.00029542,2]
[383934218,1757182237933,-999.99,0.00029542,2]
[383934219,1757182237943,-9999.99,0.00029542,2]
[383934220,1757182237952,-203.87,0.00029746,2]
[383934221,1757182237961,-1436.63,0.00029746,2]
[383934222,1757182237970,-267.46074303,0.00029982,2]
[383934223,1757182237980,-1000.0,0.0003,7]
[383934224,1757182237989,-2096.89454016,0.00030754,14]
[383934225,1757182237999,-1339.508,0.00031312,29]
[383934226,1757182238008,-277.35679052,0.00031351,2]
[383934227,1757182238017,-8424.59,0.00031426,2]
[383934228,1757182238027,-217.30573422,0.00031682,2]
[383934229,1757182238036,-500.0,0.00031682,2]
[383934230,1757182238046,-312.0,0.00031682,2]
[383934231,1757182238055,-151.0,0.00031682,2]
[383934232,1757182238065,-151.0,0.00031682,2]
[383934233,1757182238074,-151.0,0.00031682,2]
[383934234,1757182238085,-228.3259077,0.00031682,2]
[383934235,1757182238095,-1000.0,0.00031701,7]
[383934236,1757182238105,-160.0,0.00031813,7]
[383934237,1757182238118,-1394.78,0.00031924,120]
[383934238,1757182238127,-530.34,0.00031969,30]
[383934239,1757182238138,-250.0,0.00032169,2]
[383934240,1757182238147,-1000.0,0.000324,7]
[383934241,1757182238159,-160.0,0.00032463,2]
[383934242,1757182238173,-200.0,0.000325,2]
[383934243,1757182238182,-160.14,0.00032527,2]
[383934244,1757182238192,-287.61899177,0.0003272,2]
[383934246,1757182238203,-170.84,0.00032802,120]
[383934248,1757182238212,-158.25,0.00032824,2]
[383934249,1757182238222,-5000.0,0.00032899,2]
[383934250,1757182238231,-1000.0,0.000329,7]
[383934251,1757182238241,-150.0,0.00032952,2]
[383934252,1757182238250,-334.54094244,0.00033071,2]
[383934253,1757182238259,-1000.0,0.000331,7]
[383934254,1757182238269,-150.0,0.00033322,2]
[383934255,1757182238278,-1000.0,0.00033403,7]
[383934256,1757182238286,-666.0,0.00033416,3]
[383934257,1757182238295,-1000.0,0.00033492,30]
[383934258,1757182238305,-465.04504139,0.00033665,2]
[383934259,1757182238314,-2096.89454016,0.00033682,21]
[383934260,1757182238325,-2000.0,0.000337,2]
[383934261,1757182238334,-1443.9917,0.000337,2]
[383934262,1757182238343,-3011.38049103,0.00033768,2]
[383934263,1757182238353,-532.82,0.00033769,30]
[383934264,1757182238362,-1006.0,0.000338,7]
[383934265,1757182238373,-848.023,0.00033838,2]
[383934266,1757182238382,-4730.0974,0.00033838,2]
[383934267,1757182238391,-3389.26,0.00033938,2]
[383934268,1757182238401,-362.73,0.00033963,2]
[383934269,1757182238411,-298.26089446,0.00034089,2]
[383934270,1757182238420,-532.82,0.00034321,30]
[383934271,1757182238431,-300.0,0.00034384,2]
[383934272,1757182238441,-311.0,0.00034384,2]
[383934273,1757182238451,-150.0,0.00034384,2]
[383934274,1757182238460,-150.0,0.00034384,2]
[383934275,1757182238470,-150.0,0.00034384,2]
[383934276,1757182238479,-150.0,0.00034384,2]
[383934277,1757182238489,-1189.21,0.00034384,2]
[383934278,1757182238498,-167.37,0.00034384,2]
[383934279,1757182238508,-150.0,0.00034384,2]
[383934280,1757182238518,-150.0,0.00034384,2]
[383934281,1757182238527,-150.0,0.00034384,2]
[383934282,1757182238536,-150.0,0.00034384,2]
[383934283,1757182238546,-819.4,0.00034384,2]
[383934284,1757182238559,-150.0,0.00034384,2]
[383934285,1757182238570,-150.0,0.00034384,2]
[383934286,1757182238580,-1189.21,0.00034384,2]
[383934287,1757182238590,-409.88,0.00034384,2]
[383934288,1757182238599,-150.0,0.00034384,2]
[383934289,1757182238609,-166.62,0.00034384,2]
[383934290,1757182238619,-541.44,0.00034384,2]
[383934291,1757182238628,-1189.21,0.00034384,2]
[383934292,1757182238638,-150.0,0.00034384,2]
[383934293,1757182238647,-174.35,0.00034384,2]
[383934294,1757182238658,-409.19,0.00034384,2]
[383934295,1757182238668,-300.0,0.00034384,2]
[383934296,1757182238680,-166.62,0.00034384,2]
[383934297,1757182238689,-332.38,0.00034384,2]
[383934298,1757182238699,-174.35,0.00034384,2]
[383934299,1757182238709,-541.44,0.00034384,2]
[383934300,1757182238719,-166.62,0.00034384,2]
[383934301,1757182238727,-409.88,0.00034384,2]
[383934302,1757182238737,-150.0,0.00034384,2]
[383934303,1757182238747,-166.62,0.00034384,2]
[383934304,1757182238757,-174.35,0.00034384,2]
[383934305,1757182238766,-348.0,0.00034384,2]
[383934306,1757182238775,-409.88,0.00034384,2]
[383934307,1757182238785,-541.44,0.00034384,2]
[383934308,1757182238795,-541.44,0.00034384,2]
[383934309,1757182238804,-174.35,0.00034384,2]
[383934310,1757182238814,-541.44,0.00034384,2]
[383934311,1757182238823,-166.67,0.00034458,2]
[383934312,1757182238834,-1003.37497288,0.00034489,2]
[383934313,1757182238844,-1425.0,0.00034591,2]
[383934314,1757182238853,-200.0,0.000346,12]
[383934315,1757182238863,-500.0,0.00034612,2]
[383934316,1757182238873,-1000.0,0.00034673,2]
[383934317,1757182238883,-500.0,0.000347,12]
[383934318,1757182238892,-1425.0,0.00034724,2]
[383934319,1757182238903,-800.0,0.000348,12]
[383934320,1757182238913,-855.77024084,0.00034811,2]
[383934321,1757182238923,-532.82,0.00034873,30]
[383934322,1757182238932,-1100.0,0.000349,12]
[383934323,1757182238942,-1000.0,0.000349,2]
[383934324,1757182238952,-2500.0,0.000349,2]
[383934325,1757182238962,-189.78144715,0.00034904,2]
[383934326,1757182238971,-738.63700139,0.00034904,35]
[383934327,1757182238980,-4.41006072,0.00034904,2]
[383934337,1757182240024,-514.85095374,0.0003239,2]
[383934338,1757182240034,-413.2048458,0.00034904,2]
[383934339,1757182240043,-1853.697019,0.00034908,2]
[383934340,1757182240053,-31120.1241281,0.00034908,2]
[383934341,1757182240062,-207.38,0.00034915,120]
[383934342,1757182240071,-417.61490645,0.00034972,2]
[383934343,1757182240080,-38212.6479374,0.0003499,2]
[383934344,1757182240089,-187.64567,0.00034997,7]
[383934345,1757182240099,-10000.0,0.00035,2]
[383934346,1757182240108,-200.0,0.00035,2]
[383934347,1757182240117,-200.0,0.00035,2]
[383934348,1757182240127,-200.0,0.00035,2]
[383934349,1757182240137,-200.0,0.00035,2]
[383934350,1757182240148,-200.0,0.00035,2]
[383934351,1757182240158,-200.0,0.00035,2]
[383934352,1757182240168,-200.0,0.00035,2]
[383934353,1757182240178,-200.0,0.00035,2]
[383934354,1757182240188,-202867.19682304,0.00035,2]
[383934355,1757182240198,-1357.28224925,0.00035004,4]
[383934356,1757182240208,-1357.28224925,0.00035004,4]
[383934357,1757182240218,-25475.098625,0.00035004,2]
[383934358,1757182240228,-1000.0,0.00035014,2]
[383934359,1757182240238,-11497.94141904,0.00035014,2]
[383934360,1757182240259,-888.29651388,0.00035014,2]
[383934361,1757182240279,-1388.92979436,0.00035014,2]
[383934387,1757182246075,-255.1919861,0.00035014,2]
[383934395,1757182455298,1000.0,0.0003,120]
[383934396,1757182457695,1000.0,0.0003,120]
[383934397,1757182458088,1000.0,0.0003,120]
[383934398,1757182458490,1000.0,0.0003,120]
[383934399,1757182458883,1000.0,0.0003,120]
[383934400,1757182459347,1000.0,0.0003,120]
[383934401,1757182468185,1000.0,0.0003,120]
[383934402,1757182474114,1000.0,0.0003,120]
[383934403,1757182481103,1000.0,0.000301,120]
[383934404,1757182517724,1000.0,0.0003,120]
[383934405,1757182519133,1000.0,0.0003,120]
[383934406,1757182521683,1000.0,0.0003,120]
[383934407,1757182521981,1000.0,0.0003,120]
[383934409,1757182621614,2500.0,0.0002739,120]
[383934410,1757182683224,500.0,0.0002739,120]
[383934412,1757182964133,-1817.30860153,0.000249,2]
[383934413,1757182964158,-151.0,0.000249,2]
[383934415,1757183061918,1756.73164831,0.000249,2]
[383934416,1757183108133,31274.95975016,0.0002,2]
[383934417,1757183108162,9600.0,0.0002,2]
[383934418,1757183108189,70203.90852406,0.0002,2]
[383934419,1757183125735,2766.38995858,0.000175,2]
[383934424,1757183386048,250.0,0.00015,2]
[383934431,1757183432059,-521.57638762,0.0002488,7]
[383934432,1757183432070,-1200.0,0.00024899,2]
[383934433,1757183432080,-334.09192516,0.000249,2]
[383934434,1757183432089,-233.96558901,0.000249,2]
[383934435,1757183432118,-67.05066213,0.000249,2]
[383934436,1757183432128,-553.97775105,0.000249,5]
[383934437,1757183432138,-1988.35489494,0.000249,2]
[383934438,1757183432148,-500.0,0.00024973,2]
[383934439,1757183432157,-500.0,0.00024973,2]
[383934440,1757183432167,-500.0,0.00024973,2]
[383934441,1757183432176,-500.0,0.00024973,2]
[383934442,1757183432185,-300.0,0.00024989,2]
[383934443,1757183432194,-20804.93415587,0.0002499,2]
[383934444,1757183432206,-13018.80450594,0.0002499,2]
[383934452,1757183432403,-1806.28990563,0.0002499,2]
[383934454,1757183432415,-701.50005201,0.0002499,2]
[383934637,1757183439334,-3163.35175425,0.0002499,2]
[383934638,1757183439382,-922.793,0.0002499,2]
[383934639,1757183439408,-35510.1984751,0.0002499,2]
[383934640,1757183439417,-714.5618696,0.00024999,2]
[383934641,1757183439427,-500.0,0.00024999,2]
[383934642,1757183439437,-396.93404927,0.00024999,2]
[383934643,1757183439447,-500.0,0.00024999,2]
[383934644,1757183439456,-500.0,0.00024999,2]
[383934646,1757183439466,-246.61749904,0.00024999,2]
[383934648,1757183439476,-500.0,0.00024999,2]